bitfinex-derivatives/quotes_BTCF0:USTF0_20250108
["timestamp","ask_amount","ask_price","bid_price","bid_amount"]
[1736346969567,8.429e-05,95594.0,95585.0,0.3608]
[1736346970261,0.3608,95590.0,95574.0,0.3608]
[1736346970564,0.052319,95591.0,95577.0,0.052326]
[1736346970865,0.3608,95593.0,95576.0,0.3608]
[1736346971166,0.3608,95593.0,95564.0,0.3608]
[1736346971167,0.052323,95583.0,95564.0,0.3608]
[1736346971463,0.3608,95566.0,95531.0,0.3608]
[1736346971766,0.052339,95554.0,95531.0,0.3608]
[1736346971962,0.3608,95546.0,95531.0,0.3608]
[1736346972454,0.052349,95536.0,95531.0,0.3608]
[1736346972649,9.591e-05,95535.0,95528.0,0.0831]
[1736346972852,9.591e-05,95535.0,95532.0,0.3608]
[1736346973055,0.3608,95556.0,95533.0,0.052351]
[1736346973263,0.3608,95547.0,95532.0,0.3608]
[1736346973654,0.3608,95556.0,95541.0,0.3608]
[1736346973868,0.3608,95566.0,95550.0,0.3608]
[1736346974065,0.00011101,95565.0,95560.0,0.052335]
[1736346974260,0.00011101,95565.0,95563.0,0.052334]
[1736346974567,0.052319,95591.0,95572.0,0.052329]
[1736346974763,0.3608,95599.0,95583.0,0.3608]
[1736346974968,0.05231,95607.0,95585.0,0.052322]
[1736346975162,0.052304,95618.0,95600.0,0.3608]
[1736346975464,0.00010565,95617.0,95609.0,0.3608]
[1736346975670,0.3608,95610.0,95593.0,0.052318]
[1736346975856,0.3608,95597.0,95584.0,0.3608]
[1736346976364,0.36144,95610.0,95596.0,0.3608]
[1736346976563,0.05231,95607.0,95596.0,0.3608]
[1736346976765,0.052314,95600.0,95596.0,0.3608]
[1736346976964,0.052317,95594.0,95581.0,0.082]
[1736346977153,0.052324,95583.0,95581.0,0.082]
[1736346977357,0.3608,95591.0,95577.0,0.3608]
[1736346977880,8.843e-05,95593.0,95590.0,0.3608]
[1736346978164,0.052305,95617.0,95600.0,0.052314]
[1736346978369,0.3608,95629.0,95604.0,0.3608]
[1736346978370,0.052309,95610.0,95604.0,0.3608]
[1736346978579,0.052317,95596.0,95582.0,0.3608]
[1736346978759,0.413111,95606.0,95583.0,0.052323]
[1736346979064,0.00012698,95605.0,95592.0,0.3608]
[1736346979256,0.00012698,95605.0,95594.0,0.052317]
[1736346979457,0.00012698,95605.0,95592.0,0.3608]
[1736346979775,0.052317,95595.0,95592.0,0.3608]
[1736346980064,0.052317,95595.0,95581.0,0.004]
[1736346980065,0.3608,95593.0,95581.0,0.004]
[1736346980265,0.05233,95571.0,95569.0,8.001e-05]
[1736346980465,0.3608,95570.0,95529.0,0.0919]
[1736346980674,0.3608,95539.0,95517.0,0.3608]
[1736346980967,0.052347,95540.0,95526.0,0.052354]
[1736346981161,0.052347,95540.0,95529.0,0.3608]
[1736346981357,7.659e-05,95539.0,95529.0,0.3608]
[1736346981563,7.659e-05,95539.0,95538.0,0.41471777]
[1736346981760,1e-08,95539.0,95538.0,0.36236977]
[1736346982067,1e-08,95539.0,95538.0,0.00156977]
[1736346982268,1e-08,95539.0,95538.0,0.36236977]
[1736346982473,1e-08,95539.0,95538.0,0.41471777]
[1736346983061,1e-08,95539.0,95538.0,0.71471777]
[1736346983468,1e-08,95539.0,95538.0,0.71681117]
[1736346983668,0.3608,95609.0,95586.0,0.052321]
[1736346983873,0.3608,95630.0,95607.0,0.3608]
[1736346984069,0.052311,95606.0,95605.0,0.3608]
[1736346984266,0.052306,95615.0,95605.0,0.3608]
[1736346984467,0.052311,95607.0,95605.0,0.3608]
[1736346984668,7.806e-05,95606.0,95605.0,0.3608]
[1736346984867,0.00064,95630.0,95605.0,0.6608]
[1736346985077,0.052292,95641.0,95629.0,0.3608]
[1736346985276,0.3608,95649.0,95629.0,0.3608]
[1736346985474,0.052297,95631.0,95629.0,0.3608]
[1736346985877,0.00010188,95630.0,95629.0,0.3608]
[1736346986981,0.00410188,95630.0,95629.0,0.3608]
[1736346987197,0.36490188,95630.0,95619.0,0.3608]
[1736346987495,0.00410188,95630.0,95619.0,0.413103]
[1736346987993,0.24841678,95630.0,95619.0,0.3608]
[1736346988199,0.052308,95612.0,95608.0,0.3608]
[1736346988701,0.3608,95613.0,95596.0,0.3608]
[1736346988895,0.052305,95616.0,95604.0,0.3608]
[1736346989289,0.052311,95606.0,95604.0,0.3608]
[1736346989595,0.052305,95616.0,95604.0,0.3608]
[1736346989791,0.3608,95614.0,95604.0,0.3608]
[1736346989993,0.3608,95605.0,95586.0,0.46872]
[1736346990183,0.052322,95586.0,95583.0,0.3608]
[1736346990388,0.00010494,95604.0,95583.0,0.3608]
[1736346990896,0.19024156,96602.0,95617.0,0.052304]
[1736346990897,0.052294,95636.0,95617.0,0.052304]
[1736346991093,0.3608,95639.0,95612.0,0.3608]
[1736346991296,0.3608,95639.0,95604.0,0.052311]
[1736346991492,0.3608,95639.0,95620.0,0.413102]
[1736346991493,0.052297,95631.0,95620.0,0.413102]
[1736346991798,0.3608,95639.0,95611.0,0.3608]
[1736346992099,0.052308,95610.0,95602.0,0.46868]
[1736346992399,0.3608,95628.0,95602.0,0.46868]
[1736346992400,0.052311,95605.0,95602.0,0.46868]
[1736346992603,0.052311,95605.0,95604.0,0.3608]
[1736346992802,0.0001063,95609.0,95607.0,0.05231]
[1736346993393,0.0001063,95609.0,95604.0,0.3608]
[1736346993701,0.3608,95605.0,95579.0,0.3608]
[1736346993899,0.052312,95604.0,95590.0,0.413119]
[1736346994195,0.0001063,95609.0,95590.0,0.3608]
[1736346994396,0.3608,95608.0,95590.0,0.3608]
[1736346994603,0.052315,95598.0,95590.0,0.3608]
[1736346994897,0.0001063,95609.0,95590.0,0.3608]
[1736346995097,0.0001063,95609.0,95580.0,0.4476]
[1736346995098,0.052323,95584.0,95580.0,0.4476]
[1736346995396,0.052325,95579.0,95572.0,0.3608]
[1736346995798,8.46e-05,95583.0,95572.0,0.3608]
[1736346996102,8.46e-05,95583.0,95574.0,0.052328]
[1736346996296,8.46e-05,95583.0,95577.0,0.052326]
[1736346996613,8.46e-05,95583.0,95581.0,0.413124]
[1736346997103,0.20757423,95612.0,95603.0,0.052312]
[1736346997402,0.052307,95612.0,95606.0,0.05231]
[1736346997593,0.3608,95619.0,95605.0,0.3608]
[1736346997799,0.052314,95599.0,95595.0,0.3608]
[1736346997994,0.3608,95619.0,95595.0,0.3608]
[1736346998204,0.05236796,95598.0,95591.0,0.052319]
[1736346998396,0.05236796,95598.0,95592.0,0.413118]
[1736346998599,0.052318,95593.0,95585.0,0.521042]
[1736346999102,5.296e-05,95598.0,95585.0,0.46872]
[1736346999305,5.296e-05,95598.0,95597.0,0.3608]
[1736346999509,5.296e-05,95598.0,95597.0,0.413116]
[1736346999893,9.6e-07,95598.0,95597.0,0.4600577]
[1736347000801,9.6e-07,95598.0,95597.0,0.4610577]
[1736347000991,9.6e-07,95598.0,95597.0,0.3618]
[1736347001193,9.6e-07,95598.0,95597.0,0.001]
[1736347001396,0.052315,95599.0,95597.0,0.001]
[1736347002202,0.052315,95599.0,95582.0,0.093]
[1736347002203,0.052325,95579.0,95574.0,0.3608]
[1736347002406,0.713115,95599.0,95574.0,0.3608]
[1736347002407,0.3608,95584.0,95574.0,0.0006]
[1736347002700,0.001,95598.0,95577.0,0.3608]
[1736347002900,0.001,95598.0,95596.0,0.052316]
[1736347003103,0.3608,95609.0,95590.0,0.3608]
[1736347003301,0.052315,95599.0,95597.0,0.001]
[1736347003999,0.3608,95600.0,95585.0,0.3608]
[1736347004304,0.052325,95580.0,95578.0,0.00156913]
[1736347004507,0.3608,95586.0,95578.0,0.00156913]
[1736347004702,0.3608,95586.0,95567.0,0.36091363]
[1736347004703,0.052331,95568.0,95567.0,0.36091363]
[1736347005507,0.052328,95575.0,95567.0,0.41324563]
[1736347005805,0.052331,95569.0,95567.0,0.36091363]
[1736347006011,0.052331,95569.0,95567.0,0.00011363]
[1736347006203,0.352331,95569.0,95567.0,6.3e-07]
[1736347006694,0.052345,95544.0,95543.0,0.3608]
[1736347006892,0.3608,95550.0,95536.0,0.24740146]
[1736347007105,0.052347,95540.0,95536.0,0.24740146]
[1736347007498,0.3608,95542.0,95536.0,0.24740146]
[1736347007499,0.052348,95538.0,95536.0,0.24740146]
[1736347007808,0.052351,95533.0,95528.0,0.052353]
[1736347008105,0.3608,95532.0,95520.0,0.00157013]
[1736347008405,0.052339,95555.0,95520.0,0.00157013]
[1736347008406,0.413157,95522.0,95520.0,0.00157013]
[1736347008603,0.413157,95522.0,95512.0,0.24740146]
[1736347008604,0.052362,95513.0,95512.0,0.24740146]
[1736347008808,0.413162,95513.0,95512.0,0.24740146]
[1736347009009,0.052362,95513.0,95512.0,0.24740146]
[1736347009217,0.00010151,95531.0,95519.0,0.052358]
[1736347009417,0.00010151,95531.0,95529.0,0.413152]
[1736347010011,0.00010151,95531.0,95529.0,0.3608]
[1736347010411,0.00110151,95531.0,95529.0,0.3608]
[1736347011613,0.05345351,95531.0,95529.0,0.3608]
[1736347011811,0.052354,95528.0,95518.0,0.052359]
[1736347012113,0.00110151,95531.0,95520.0,0.3608]
[1736347012303,0.2443149,95530.0,95500.0,0.1]
[1736347012509,0.052358,95520.0,95514.0,0.3608]
[1736347012709,0.05236,95516.0,95514.0,0.3608]
[1736347013015,0.00010151,95531.0,95514.0,0.3608]
[1736347013311,0.3608,95556.0,95529.0,0.052352]
[1736347013505,0.3608,95556.0,95537.0,0.3608]
[1736347013704,0.3608,95556.0,95537.0,0.413148]
[1736347014014,0.3608,95556.0,95537.0,0.3608]
[1736347014216,0.052339,95554.0,95545.0,0.3608]
[1736347014414,0.052339,95554.0,95553.0,0.3608]
[1736347014607,0.3608,95560.0,95537.0,0.3608]
[1736347014811,0.3608,95551.0,95537.0,0.3608]
[1736347015014,0.052352,95530.0,95529.0,0.002]
[1736347015414,0.3608,95542.0,95529.0,0.002]
[1736347015599,0.052348,95538.0,95529.0,0.002]
[1736347015800,0.052352,95530.0,95529.0,0.002]
[1736347016014,0.052361,95515.0,95503.0,0.24740146]
[1736347016208,0.3608,95511.0,95503.0,0.24740146]
[1736347016415,0.052363,95510.0,95503.0,0.24740146]
[1736347016612,0.052368,95502.0,95500.0,0.1]
[1736347017217,0.052366,95505.0,95501.0,0.3608]
[1736347017519,0.052367,95504.0,95501.0,0.3608]
[1736347017712,0.052367,95504.0,95503.0,0.002]
[1736347019114,0.3608,95506.0,95501.0,0.001]
[1736347019316,0.2443149,95520.0,95501.0,0.001]
[1736347019512,0.3608,95542.0,95501.0,0.001]
[1736347019513,0.15562822,95538.0,95528.0,0.052353]
[1736347019713,0.05235,95535.0,95528.0,0.3608]
[1736347019912,0.052353,95529.0,95524.0,0.3608]
[1736347020116,0.052348,95537.0,95524.0,0.413155]
[1736347020415,0.15562822,95538.0,95536.0,0.052349]
[1736347020821,0.3608,95568.0,95536.0,0.413149]
[1736347021022,0.15626822,95573.0,95563.0,0.052334]
[1736347021318,0.15562822,95573.0,95558.0,0.3608]
[1736347021513,0.052337,95558.0,95550.0,0.052341]
[1736347021711,0.3608,95565.0,95546.0,0.3608]
[1736347021917,0.3608,95568.0,95546.0,0.3608]
[1736347022125,0.36148,95579.0,95566.0,0.3608]
[1736347022423,0.413116,95596.0,95588.0,0.05232]
[1736347022618,0.413116,95596.0,95560.0,0.2443149]
[1736347022619,0.15562822,95609.0,95595.0,0.3608]
[1736347022920,0.15562822,95609.0,95605.0,0.3608]
[1736347023115,0.15562822,95609.0,95608.0,0.052309]
[1736347023617,0.00072,95626.0,95618.0,0.052304]
[1736347023815,0.3608,95626.0,95608.0,0.3608]
[1736347024017,0.052291,95642.0,95629.0,0.052298]
[1736347024327,0.3608,95646.0,95631.0,0.3608]
[1736347024620,0.05229,95645.0,95635.0,0.052294]
[1736347024923,0.3608,95638.0,95619.0,0.3608]
[1736347025128,0.3608,95638.0,95627.0,0.052299]
[1736347025422,0.3608,95638.0,95619.0,0.3608]
[1736347025628,0.155047,95656.0,95650.0,0.052286]
[1736347025836,0.155047,95656.0,95640.0,0.2443149]
[1736347026125,0.155047,95656.0,95650.0,0.3608]
[1736347026718,0.155047,95656.0,95654.0,0.052284]
[1736347027025,0.155047,95656.0,95637.0,0.3608]
[1736347027026,0.3608,95662.0,95637.0,0.3608]
[1736347027215,0.3608,95647.0,95637.0,0.3608]
[1736347027519,0.001,95656.0,95637.0,0.3608]
[1736347027727,0.052284,95655.0,95644.0,0.05229]
[1736347028110,0.052284,95655.0,95641.0,0.052291]
[1736347028314,0.001,95656.0,95641.0,0.052291]
[1736347028521,0.052285,95654.0,95641.0,0.052291]
[1736347028722,0.001,95656.0,95641.0,0.052291]
[1736347028923,0.052285,95653.0,95641.0,0.052291]
[1736347029222,0.3608,95662.0,95656.0,0.052283]
[1736347029431,0.3608,95668.0,95647.0,0.3608]
[1736347029730,0.01274565,95691.0,95637.0,0.001]
[1736347029731,0.052293,95639.0,95637.0,0.001]
[1736347029913,0.052299,95627.0,95610.0,0.052308]
[1736347030117,0.3608,95638.0,95614.0,0.3608]
[1736347030618,0.052303,95620.0,95606.0,0.3608]
[1736347030815,0.6051149,95630.0,95606.0,0.3608]
[1736347031020,0.052309,95608.0,95606.0,0.3608]
[1736347031224,0.052305,95616.0,95607.0,0.3608]
[1736347031532,0.052301,95625.0,95615.0,0.3608]
[1736347032126,0.3608,95622.0,95597.0,0.3608]
[1736347032318,0.052313,95603.0,95592.0,0.0927]
[1736347032622,0.3608,95620.0,95596.0,0.3608]
[1736347032814,0.3608,95620.0,95605.0,0.052311]
[1736347032815,0.052304,95619.0,95605.0,0.052311]
[1736347033027,0.3608,95620.0,95615.0,0.001]
[1736347033221,0.413095,95635.0,95619.0,0.052303]
[1736347033416,0.413095,95635.0,95616.0,0.3608]
[1736347033417,0.2443149,95630.0,95616.0,0.3608]
[1736347033725,0.052305,95616.0,95615.0,0.001]
[1736347033929,0.052306,95614.0,95584.0,0.052322]
[1736347034128,0.3608,95616.0,95590.0,0.3608]
[1736347034320,0.052316,95596.0,95590.0,0.3608]
[1736347034521,0.052316,95596.0,95587.0,0.052321]
[1736347034721,0.052316,95596.0,95570.0,0.0927]
[1736347034722,0.413116,95596.0,95573.0,0.052328]
[1736347035024,0.413116,95596.0,95570.0,0.0927]
[1736347035224,0.3608,95575.0,95570.0,0.0927]
[1736347035617,0.3608,95596.0,95570.0,0.0927]
[1736347035821,0.052331,95569.0,95567.0,0.00012977]
[1736347036021,0.3608,95568.0,95567.0,0.00012977]
[1736347036315,0.3608,95577.0,95570.0,0.002]
[1736347036521,0.3608,95589.0,95571.0,0.3608]
[1736347036827,0.01217351,95601.0,95587.0,0.3608]
[1736347037026,0.052309,95610.0,95587.0,0.3608]
[1736347037329,0.052318,95592.0,95587.0,0.3608]
[1736347037527,0.052319,95591.0,95587.0,0.3608]
[1736347038030,0.3608,95589.0,95580.0,0.1032]
[1736347038226,0.052323,95584.0,95580.0,0.1032]
[1736347038626,0.3608,95587.0,95563.0,0.3608]
[1736347038827,0.052326,95578.0,95565.0,0.052333]
[1736347039021,0.413131,95568.0,95552.0,0.0988]
[1736347039218,0.413131,95568.0,95551.0,0.3608]
[1736347039419,0.713131,95568.0,95567.0,7.7e-07]
[1736347039626,0.052342,95548.0,95532.0,0.3608]
[1736347039829,0.052342,95548.0,95538.0,0.052348]
[1736347040029,0.3608,95568.0,95544.0,0.3608]
[1736347040335,0.3608,95579.0,95561.0,0.3608]
[1736347040632,0.2443149,95600.0,95544.0,0.052344]
[1736347040633,0.00013046,95578.0,95575.0,0.052327]
[1736347040830,0.00013046,95578.0,95576.0,0.052327]
[1736347041225,0.00013046,95578.0,95567.0,0.001]
[1736347041426,0.00013046,95578.0,95572.0,0.052329]
[1736347041724,0.00013046,95578.0,95567.0,0.001]
[1736347042124,0.3608,95568.0,95561.0,0.1992]
[1736347042319,0.3608,95568.0,95545.0,0.099]
[1736347042320,0.00011999,95567.0,95544.0,0.005]
[1736347042531,0.3608,95551.0,95544.0,0.005]
[1736347042727,0.052343,95547.0,95544.0,0.005]
[1736347043022,0.00013485,95546.0,95528.0,0.1024]
[1736347043227,0.052352,95531.0,95528.0,0.1024]
[1736347043437,0.052352,95531.0,95525.0,0.3608]
[1736347043626,0.3608,95541.0,95525.0,0.3608]
[1736347043833,0.052352,95531.0,95515.0,0.3608]
[1736347044034,9.077e-05,95530.0,95504.0,0.1024]
[1736347044224,9.077e-05,95530.0,95511.0,0.3608]
[1736347044937,9.077e-05,95530.0,95523.0,0.052356]
[1736347045131,0.05244277,95530.0,95511.0,0.3608]
[1736347045327,0.052366,95505.0,95504.0,0.1024]
[1736347045524,0.052368,95501.0,95500.0,0.1]
[1736347045729,0.3608,95501.0,95468.0,0.3608]
[1736347045931,0.3608,95485.0,95468.0,0.3608]
[1736347046126,0.052377,95486.0,95475.0,0.052382]
[1736347046425,8.1e-05,95485.0,95468.0,0.3608]
[1736347046730,0.360881,95485.0,95468.0,0.3608]
[1736347046927,0.052379,95482.0,95471.0,0.052384]
[1736347047132,8.1e-05,95485.0,95471.0,0.052384]
[1736347047439,8.1e-05,95485.0,95468.0,0.006]
[1736347047440,0.2443149,95481.0,95468.0,0.006]
[1736347047625,0.052381,95478.0,95468.0,0.006]
[1736347047939,0.3608,95473.0,95468.0,0.006]
[1736347048130,0.052385,95470.0,95468.0,0.006]
[1736347048533,0.052399,95445.0,95441.0,0.0015713]
[1736347048737,0.0524,95442.0,95441.0,0.0015713]
[1736347048937,0.00010064,95444.0,95441.0,0.0015713]
[1736347049433,0.3608,95468.0,95441.0,0.0015713]
[1736347049638,0.413191,95460.0,95446.0,0.3608]
[1736347049947,0.3608,95478.0,95456.0,0.3608]
[1736347050234,0.3608,95478.0,95455.0,0.3608]
[1736347050443,8.286e-05,95477.0,95463.0,0.3608]
[1736347050744,0.052382,95476.0,95463.0,0.3608]
[1736347051141,8.286e-05,95477.0,95463.0,0.3608]
[1736347051443,8.286e-05,95477.0,95471.0,0.3608]
[1736347051837,8.286e-05,95477.0,95464.0,0.0999]
[1736347052041,0.052387,95468.0,95464.0,0.0999]
[1736347052228,8.286e-05,95477.0,95464.0,0.0999]
[1736347053546,0.052387,95468.0,95464.0,0.0999]
[1736347054337,8.286e-05,95477.0,95464.0,0.0999]
[1736347054642,0.052388,95465.0,95464.0,0.0999]
[1736347054935,0.052393,95455.0,95453.0,0.3608]
[1736347055544,0.052395,95452.0,95451.0,0.3608]
[1736347055745,0.3608,95466.0,95451.0,0.3608]
[1736347056048,0.052391,95460.0,95451.0,0.3608]
[1736347056243,0.05239,95461.0,95451.0,0.3608]
[1736347056546,0.05239,95461.0,95459.0,0.3608]
[1736347057236,0.05239,95461.0,95452.0,0.0984]
[1736347057237,0.052394,95453.0,95452.0,0.0984]
[1736347057431,0.0524,95442.0,95441.0,0.4644713]
[1736347057742,0.3608,95456.0,95441.0,0.1036713]
[1736347057932,0.052397,95448.0,95441.0,0.5168723]
[1736347058131,0.0524,95443.0,95441.0,0.4644713]
[1736347058336,0.0524,95443.0,95441.0,0.1036713]
[1736347058541,9.55e-05,95442.0,95441.0,0.1036713]
[1736347058945,0.3608955,95442.0,95440.0,5.7e-07]
[1736347059143,0.052416,95413.0,95412.0,0.3608]
[1736347059344,0.05242,95406.0,95402.0,0.3608]
[1736347059639,0.052419,95408.0,95402.0,0.3608]
[1736347059841,0.2443149,95422.0,95402.0,0.3608]
[1736347060045,0.052422,95403.0,95402.0,0.3608]
[1736347060237,0.052423,95401.0,95400.0,0.1]
[1736347060851,0.001,95406.0,95405.0,0.052421]
[1736347061044,0.3608,95429.0,95419.0,0.052413]
[1736347061236,0.052411,95424.0,95419.0,0.052413]
[1736347061437,0.3608,95440.0,95419.0,0.052413]
[1736347061643,0.3608,95440.0,95427.0,0.052408]
[1736347061848,0.3608,95440.0,95434.0,0.052405]
[1736347062154,0.052403,95438.0,95433.0,0.3608]
[1736347062350,0.052404,95437.0,95433.0,0.3608]
[1736347062645,0.3608,95458.0,95433.0,0.3608]
[1736347062646,0.3608,95458.0,95433.0,0.6608]
[1736347062857,0.052396,95451.0,95449.0,0.3608]
[1736347063154,0.3608,95466.0,95440.0,0.052401]
[1736347063448,0.052398,95447.0,95433.0,0.3608]
[1736347063651,0.052403,95438.0,95433.0,0.3608]
[1736347063954,5.517e-05,95446.0,95433.0,0.3608]
[1736347064149,5.517e-05,95446.0,95443.0,0.0524]
[1736347064357,0.052399,95445.0,95436.0,0.052403]
[1736347064659,0.052402,95439.0,95418.0,0.052413]
[1736347064957,0.052414,95417.0,95414.0,0.3608]
[1736347065154,0.052415,95415.0,95414.0,0.3608]
[1736347065352,0.052417,95412.0,95408.0,0.052419]
[1736347065653,5.517e-05,95416.0,95352.0,0.3608]
[1736347065654,0.052438,95373.0,95352.0,0.3608]
[1736347065854,0.052443,95365.0,95347.0,0.052452]
[1736347066063,0.052443,95365.0,95345.0,0.1051]
[1736347066449,0.052443,95365.0,95364.0,1.3e-07]
[1736347066653,0.052443,95365.0,95337.0,0.3608]
[1736347066654,0.052456,95342.0,95337.0,0.3608]
[1736347066851,8.321e-05,95341.0,95337.0,0.3608]
[1736347067564,0.0951,95381.0,95337.0,0.3608]
[1736347067565,0.2443149,95360.0,95337.0,0.3608]
[1736347067861,0.2443149,95370.0,95358.0,0.052446]
[1736347068061,0.2443149,95370.0,95346.0,0.3608]
[1736347068254,0.2443149,95360.0,95351.0,0.05245]
[1736347068454,8.497e-05,95359.0,95345.0,0.052453]
[1736347068661,8.497e-05,95359.0,95346.0,0.052453]
[1736347068662,0.3608,95356.0,95346.0,0.052453]
[1736347069167,0.05245,95352.0,95337.0,0.413258]
[1736347069757,0.3608,95356.0,95347.0,0.052452]
[1736347070267,0.3608,95356.0,95337.0,0.3608]
[1736347070463,0.3608,95356.0,95344.0,0.052454]
[1736347070656,0.052448,95357.0,95347.0,0.052453]
[1736347070963,8.497e-05,95359.0,95349.0,0.3608]
[1736347071163,8.497e-05,95359.0,95358.0,0.413247]
[1736347071355,8.497e-05,95359.0,95358.0,0.3608]
[1736347071869,8.497e-05,95359.0,95353.0,0.052449]
[1736347072256,8.497e-05,95359.0,95349.0,0.3608]
[1736347072561,0.05253197,95359.0,95349.0,0.3608]
[1736347072764,0.052449,95353.0,95349.0,0.3608]
[1736347073061,0.052423,95401.0,95358.0,0.052447]
[1736347073265,0.3608,95400.0,95384.0,0.052432]
[1736347073564,0.052428,95392.0,95376.0,0.3608]
[1736347073761,0.413228,95392.0,95376.0,0.3608]
[1736347073956,0.413228,95392.0,95376.0,0.413236]
[1736347074154,0.413228,95392.0,95380.0,0.052434]
[1736347074564,0.3608,95392.0,95376.0,0.3608]
[1736347074765,0.3608,95377.0,95319.0,0.3608]
[1736347074958,0.6051149,95341.0,95326.0,0.052464]
[1736347075152,0.3608,95341.0,95322.0,0.052466]
[1736347075357,0.3608,95327.0,95310.0,0.3608]
[1736347075560,0.2443149,95340.0,95310.0,0.3608]
[1736347075761,0.052457,95340.0,95321.0,0.052467]
[1736347075967,0.3608,95330.0,95319.0,0.3608]
[1736347076353,0.3608,95341.0,95319.0,0.3608]
[1736347076354,0.3608,95341.0,95320.0,0.1094]
[1736347076558,0.001,95327.0,95322.0,0.052466]
[1736347076760,0.001,95327.0,95320.0,0.1094]
[1736347076954,0.001,95327.0,95326.0,0.052464]
[1736347077362,0.052455,95344.0,95326.0,0.052464]
[1736347077565,0.515847,95373.0,95342.0,0.3608]
[1736347077761,0.052439,95372.0,95358.0,0.3608]
[1736347078163,0.36152,95373.0,95352.0,0.3608]
[1736347078364,0.052439,95371.0,95352.0,0.3608]
[1736347078873,0.052439,95371.0,95359.0,0.052446]
[1736347079064,0.2443149,95370.0,95352.0,0.3608]
[1736347079262,0.052443,95365.0,95352.0,0.3608]
[1736347079872,0.052442,95367.0,95354.0,0.052449]
[1736347080070,0.3608,95373.0,95352.0,0.3608]
[1736347080071,0.2443149,95370.0,95352.0,0.3608]
[1736347080264,0.052444,95364.0,95361.0,0.3608]
[1736347080470,0.003,95370.0,95361.0,0.3608]
[1736347081063,0.003,95370.0,95369.0,0.3608]
[1736347081774,0.003,95370.0,95361.0,0.3608]
[1736347081971,0.3608,95362.0,95349.0,0.3608]
[1736347082175,0.052455,95344.0,95333.0,0.05246]
[1736347082377,0.052451,95351.0,95336.0,0.052458]
[1736347082569,0.3608,95354.0,95340.0,0.3608]
[1736347082881,0.3608,95354.0,95343.0,0.052454]
[1736347083071,0.2443149,95360.0,95348.0,0.3608]
[1736347083268,0.3608,95362.0,95348.0,0.3608]
[1736347083476,0.052444,95363.0,95348.0,0.3608]
[1736347083774,0.052444,95363.0,95352.0,0.05245]
[1736347083975,0.052449,95353.0,95348.0,0.3608]
[1736347084571,0.052445,95361.0,95351.0,0.05245]
[1736347084878,0.3608,95374.0,95351.0,0.05245]
[1736347084879,0.052446,95360.0,95351.0,0.05245]
[1736347085078,0.052443,95365.0,95354.0,0.052448]
[1736347085477,0.3608,95374.0,95356.0,0.3608]
[1736347085672,0.05243,95388.0,95379.0,0.052435]
[1736347085880,0.155047,95391.0,95387.0,0.3608]
[1736347086182,0.155047,95391.0,95389.0,0.052429]
[1736347086377,0.155047,95391.0,95389.0,0.522309]
[1736347086772,0.052418,95411.0,95389.0,0.46988]
[1736347086977,0.3608,95412.0,95389.0,0.46988]
[1736347086978,0.052416,95415.0,95408.0,0.3608]
[1736347087178,0.2967329,95410.0,95408.0,0.3608]
[1736347087378,0.052418,95410.0,95408.0,0.3608]
[1736347087573,0.413213,95420.0,95408.0,0.3608]
[1736347087777,0.1241403,95427.0,95418.0,0.3608]
[1736347088175,0.568892,95434.0,95418.0,0.3608]
[1736347088176,0.1241403,95425.0,95418.0,0.3608]
[1736347088682,0.1241403,95425.0,95423.0,0.052411]
[1736347088880,0.155047,95436.0,95435.0,0.052404]
[1736347089074,1e-08,95436.0,95435.0,0.413204]
[1736347089274,0.2443149,95450.0,95435.0,0.3608]
[1736347089483,0.0524,95443.0,95435.0,0.3608]
[1736347090085,0.3608,95447.0,95433.0,0.47048]
[1736347090389,0.3608,95447.0,95416.0,0.3608]
[1736347090574,0.3608,95447.0,95432.0,0.3608]
[1736347090778,0.3608,95456.0,95442.0,0.3608]
[1736347091279,0.005,95443.0,95442.0,0.3608]
[1736347091787,0.0574,95443.0,95433.0,0.3608]
[1736347091983,0.052405,95435.0,95433.0,0.3608]
[1736347092387,0.052417,95413.0,95405.0,0.3608]
[1736347092779,0.3608,95413.0,95405.0,0.3608]
[1736347092980,0.05242,95406.0,95405.0,0.3608]
[1736347093174,0.05242,95406.0,95398.0,0.3608]
[1736347093389,0.2443149,95410.0,95389.0,0.46968]
[1736347093586,0.3608,95413.0,95389.0,0.46968]
[1736347093781,0.3608,95413.0,95389.0,0.522109]
[1736347094081,0.3608,95404.0,95387.0,0.3608]
[1736347094386,0.3608,95404.0,95372.0,0.3608]
[1736347094387,0.052427,95393.0,95372.0,0.3608]
[1736347094576,0.052423,95401.0,95387.0,0.3608]
[1736347094781,0.052426,95395.0,95387.0,0.3608]
[1736347094989,0.3608,95402.0,95370.0,0.1027]
[1736347094990,0.3608,95393.0,95370.0,0.1027]
[1736347095296,0.3608,95393.0,95374.0,0.3608]
[1736347096076,0.3608,95393.0,95365.0,0.3608]
[1736347096391,0.052442,95367.0,95365.0,0.3608]
[1736347096980,0.3608,95380.0,95354.0,0.3608]
[1736347096981,0.052443,95364.0,95354.0,0.3608]
[1736347097891,0.052443,95364.0,95346.0,0.3608]
[1736347098293,0.052443,95364.0,95355.0,0.3608]
[1736347098990,0.001,95367.0,95363.0,0.36088446]
[1736347099180,0.001,95367.0,95363.0,8.446e-05]
[1736347099378,0.001,95367.0,95365.0,0.052442]
[1736347099588,0.001,95367.0,95363.0,0.36088446]
[1736347099589,0.3608,95381.0,95363.0,8.446e-05]
[1736347099792,0.3608,95373.0,95363.0,8.446e-05]
[1736347099991,0.3608,95364.0,95363.0,4.6e-07]
[1736347100195,0.3608,95364.0,95329.0,0.3608]
[1736347100405,0.3608,95336.0,95315.0,0.3608]
[1736347100695,0.052466,95324.0,95315.0,0.3608]
[1736347100895,0.052467,95322.0,95315.0,0.3608]